[Event "*** Titled Tuesday Blitz"]
[Site "Chess.com"]
[Date "2020.11.24"]
[Round "4"]
[White "malakismayil"]
[Black "ambaixador"]
[Result "1-0"]
[WhiteElo "2265"]
[BlackElo "2434"]
[TimeControl "180+1"]
[EndTime "10:56:09 PST"]
[Termination "malakismayil won by resignation"]

1. e4 {[%clk 0:03:00.9]} 1... c6 {[%clk 0:02:58.8]} 2. d4 {[%clk 0:03:00.1]}
2... d5 {[%clk 0:02:59.1]} 3. exd5 {[%clk 0:03:01]} 3... cxd5 {[%clk 0:03:00]}
4. Bd3 {[%clk 0:03:01.1]} 4... Nf6 {[%clk 0:02:58.7]} 5. c3 {[%clk 0:03:00.1]}
5... Nc6 {[%clk 0:02:42.6]} 6. h3 {[%clk 0:02:58.4]} 6... g6 {[%clk 0:02:39.5]}
7. Nf3 {[%clk 0:02:58]} 7... Bg7 {[%clk 0:02:39.6]} 8. O-O {[%clk 0:02:58.2]}
8... O-O {[%clk 0:02:39.6]} 9. Bb5 {[%clk 0:02:55.2]} 9... Ne4 {[%clk
0:02:32.3]} 10. Nbd2 {[%clk 0:02:49.5]} 10... Nd6 {[%clk 0:02:30.6]} 11. Bxc6
{[%clk 0:02:48.5]} 11... bxc6 {[%clk 0:02:30.1]} 12. Re1 {[%clk 0:02:49.4]}
12... Qc7 {[%clk 0:02:26.8]} 13. Nb3 {[%clk 0:02:48.8]} 13... Ne4 {[%clk
0:02:16.2]} 14. Nfd2 {[%clk 0:02:38.3]} 14... f5 {[%clk 0:02:06.4]} 15. Nxe4
{[%clk 0:02:30.4]} 15... fxe4 {[%clk 0:02:07.3]} 16. Nc5 {[%clk 0:02:29.8]}
16... e5 {[%clk 0:02:03.8]} 17. Be3 {[%clk 0:02:26.7]} 17... Qf7 {[%clk
0:01:24.1]} 18. Qd2 {[%clk 0:02:17.5]} 18... h6 {[%clk 0:01:06.7]} 19. Rad1
{[%clk 0:01:59.6]} 19... g5 {[%clk 0:01:05.4]} 20. c4 {[%clk 0:01:54.7]} 20...
g4 {[%clk 0:00:59]} 21. h4 {[%clk 0:01:51.7]} 21... Bf5 {[%clk 0:00:27.9]} 22.
Bxh6 {[%clk 0:01:43]} 22... Bg6 {[%clk 0:00:18.3]} 23. Bxg7 {[%clk 0:01:41.3]}
23... Kxg7 {[%clk 0:00:19.2]} 24. dxe5 {[%clk 0:01:40.5]} 24... Rad8 {[%clk
0:00:18.7]} 25. e6 {[%clk 0:01:37.5]} 25... Qf6 {[%clk 0:00:18.3]} 26. Qd4
{[%clk 0:01:30.7]} 26... dxc4 {[%clk 0:00:12]} 27. Qxf6+ {[%clk 0:01:20.7]}
27... Kxf6 {[%clk 0:00:12.9]} 28. Nd7+ {[%clk 0:01:19.3]} 28... Kxe6 {[%clk
0:00:12.4]} 29. Nxf8+ {[%clk 0:01:18.7]} 29... Rxf8 {[%clk 0:00:13.3]} 30. Rd4
{[%clk 0:01:17.7]} 30... Rb8 {[%clk 0:00:12.9]} 31. Re2 {[%clk 0:01:16.9]} 31...
Rb4 {[%clk 0:00:11.7]} 32. a3 {[%clk 0:01:15.5]} 32... Ke5 {[%clk 0:00:10.5]}
33. Red2 {[%clk 0:01:08.6]} 33... Rb3 {[%clk 0:00:06.9]} 34. Rxc4 {[%clk
0:01:06]} 34... Bf7 {[%clk 0:00:05.9]} 35. Rc5+ {[%clk 0:01:03.1]} 35... Bd5
{[%clk 0:00:05.2]} 36. Rc3 {[%clk 0:00:52.8]} 36... Rb8 {[%clk 0:00:04.5]} 37.
b4 {[%clk 0:00:50.7]} 37... Rh8 {[%clk 0:00:02.7]} 38. g3 {[%clk 0:00:50.7]}
38... Ra8 {[%clk 0:00:02.4]} 39. Rc5 {[%clk 0:00:49]} 39... a6 {[%clk
0:00:02.3]} 40. Kf1 {[%clk 0:00:43.6]} 40... Rf8 {[%clk 0:00:01.7]} 41. Re2
{[%clk 0:00:41.5]} 41... Kd4 {[%clk 0:00:01.4]} 42. Rd2+ {[%clk 0:00:40.6]}
42... Ke5 {[%clk 0:00:01.2]} 43. Rc3 {[%clk 0:00:40.4]} 43... Ra8 {[%clk
0:00:01.5]} 44. Rc5 {[%clk 0:00:39.4]} 44... Ra7 {[%clk 0:00:02]} 45. Rdc2
{[%clk 0:00:38.1]} 45... Rb7 {[%clk 0:00:02.2]} 46. Ke2 {[%clk 0:00:37.2]} 46...
Rf7 {[%clk 0:00:02.1]} 47. Rxc6 {[%clk 0:00:34.5]} 47... Bxc6 {[%clk 0:00:01.3]}
48. Rxc6 {[%clk 0:00:35.4]} 48... Kd4 {[%clk 0:00:02.1]} 49. Rxa6 {[%clk
0:00:34.6]} 49... Rc7 {[%clk 0:00:02]} 50. Kd2 {[%clk 0:00:33.7]} 50... Rf7
{[%clk 0:00:01.3]} 51. Ke2 {[%clk 0:00:31.8]} 51... Rc7 {[%clk 0:00:01.1]} 52.
Rd6+ {[%clk 0:00:30.7]} 52... Ke5 {[%clk 0:00:01.4]} 53. Rd2 {[%clk 0:00:30]}
53... Rc3 {[%clk 0:00:02.1]} 54. Ra2 {[%clk 0:00:30]} 54... Rb3 {[%clk
0:00:02.6]} 55. h5 {[%clk 0:00:27.9]} 55... e3 {[%clk 0:00:03]} 56. fxe3 {[%clk
0:00:27.7]} 56... Ke4 {[%clk 0:00:03.9]} 57. Kf2 {[%clk 0:00:27.3]} 57... Rxe3
{[%clk 0:00:04.8]} 58. Re2 {[%clk 0:00:26.7]} 58... Rxe2+ {[%clk 0:00:04.3]} 59.
Kxe2 {[%clk 0:00:27.6]} 59... Kf5 {[%clk 0:00:04.9]} 60. b5 {[%clk 0:00:27]}
60... Kg5 {[%clk 0:00:05.8]} 61. b6 {[%clk 0:00:27.9]} 61... Kxh5 {[%clk
0:00:06]} 62. b7 {[%clk 0:00:28.8]} 1-0

[Event "*** Titled Tuesday Blitz"]
[Site "Chess.com"]
[Date "2020.11.24"]
[Round "4"]
[White "kai_nov"]
[Black "Artyom_ChessMate"]
[Result "0-1"]
[WhiteElo "2330"]
[BlackElo "2504"]
[TimeControl "180+1"]
[EndTime "10:56:10 PST"]
[Termination "Artyom_ChessMate won by resignation"]

1. d4 {[%clk 0:03:00.9]} 1... d5 {[%clk 0:02:59.6]} 2. c4 {[%clk 0:03:00.6]}
2... e6 {[%clk 0:02:59.8]} 3. Nc3 {[%clk 0:03:00.2]} 3... Nf6 {[%clk 0:03:00.3]}
4. cxd5 {[%clk 0:02:58.1]} 4... exd5 {[%clk 0:03:00.7]} 5. Bg5 {[%clk 0:02:56]}
5... c6 {[%clk 0:03:01.6]} 6. e3 {[%clk 0:02:55.8]} 6... Qb6 {[%clk 0:03:01.4]}
7. Qc2 {[%clk 0:02:36.2]} 7... Ne4 {[%clk 0:02:58.2]} 8. Nxe4 {[%clk 0:02:31]}
8... dxe4 {[%clk 0:02:59.1]} 9. Qxe4+ {[%clk 0:02:26.5]} 9... Be6 {[%clk
0:02:58.2]} 10. Nf3 {[%clk 0:02:14]} 10... Qxb2 {[%clk 0:02:55.8]} 11. Rb1
{[%clk 0:02:07.1]} 11... Bb4+ {[%clk 0:02:22.8]} 12. Kd1 {[%clk 0:02:05.4]}
12... Qxa2 {[%clk 0:01:45]} 13. Rxb4 {[%clk 0:01:46.3]} 13... O-O {[%clk
0:01:44.7]} 14. Bd3 {[%clk 0:01:14.2]} 14... g6 {[%clk 0:01:40.9]} 15. Bb1
{[%clk 0:00:25.3]} 15... Qxf2 {[%clk 0:01:31.4]} 16. Bf6 {[%clk 0:00:17.4]}
16... Nd7 {[%clk 0:01:14.6]} 17. Bh4 {[%clk 0:00:13.2]} 17... Qxg2 {[%clk
0:00:54]} 18. Ng5 {[%clk 0:00:12.9]} 18... Qg4+ {[%clk 0:00:16.7]} 19. Qxg4
{[%clk 0:00:11.8]} 19... Bxg4+ {[%clk 0:00:17.6]} 20. Kd2 {[%clk 0:00:11.7]}
20... Nb6 {[%clk 0:00:17.5]} 21. Rg1 {[%clk 0:00:11.1]} 21... Bd7 {[%clk
0:00:15.8]} 22. Ne4 {[%clk 0:00:11.1]} 22... Bc8 {[%clk 0:00:11.2]} 23. Bf6
{[%clk 0:00:10.2]} 23... Nd5 {[%clk 0:00:10.7]} 24. Rb2 {[%clk 0:00:09]} 24...
a5 {[%clk 0:00:11.1]} 25. Be5 {[%clk 0:00:09]} 25... a4 {[%clk 0:00:10.9]} 26.
Ba2 {[%clk 0:00:08.2]} 26... f5 {[%clk 0:00:04.8]} 27. Bxd5+ {[%clk 0:00:07.5]}
27... cxd5 {[%clk 0:00:04.6]} 28. Nf6+ {[%clk 0:00:07.9]} 28... Kf7 {[%clk
0:00:05.5]} 29. Nxd5 {[%clk 0:00:08.2]} 29... a3 {[%clk 0:00:05.6]} 30. Rbb1
{[%clk 0:00:06.2]} 30... a2 {[%clk 0:00:04.4]} 31. Ra1 {[%clk 0:00:06.6]} 31...
Be6 {[%clk 0:00:04.8]} 32. Nc7 {[%clk 0:00:06.5]} 32... Ra3 {[%clk 0:00:03.7]}
33. Nxe6 {[%clk 0:00:06.4]} 33... Kxe6 {[%clk 0:00:04.6]} 34. Rgc1 {[%clk
0:00:06.5]} 34... Rfa8 {[%clk 0:00:04.1]} 35. Rc3 {[%clk 0:00:06.8]} 35... b5
{[%clk 0:00:04]} 36. Rxa3 {[%clk 0:00:06.5]} 36... Rxa3 {[%clk 0:00:04.9]} 37.
Kc2 {[%clk 0:00:05.4]} 37... Kd5 {[%clk 0:00:05.2]} 38. Kb2 {[%clk 0:00:05.6]}
38... Rxe3 {[%clk 0:00:05.8]} 39. Rxa2 {[%clk 0:00:05.9]} 39... Re2+ {[%clk
0:00:06.4]} 40. Kb3 {[%clk 0:00:06.3]} 40... Rxa2 {[%clk 0:00:06.4]} 41. Kxa2
{[%clk 0:00:06.5]} 41... g5 {[%clk 0:00:07.3]} 42. Kb3 {[%clk 0:00:06.6]} 42...
f4 {[%clk 0:00:07.9]} 43. Kc3 {[%clk 0:00:06.7]} 43... b4+ {[%clk 0:00:05.2]}
44. Kd3 {[%clk 0:00:06.6]} 44... b3 {[%clk 0:00:05.3]} 45. Kc3 {[%clk
0:00:06.8]} 45... f3 {[%clk 0:00:05.1]} 46. Bg3 {[%clk 0:00:06.5]} 46... b2
{[%clk 0:00:05.3]} 47. Kxb2 {[%clk 0:00:06.4]} 47... Kxd4 {[%clk 0:00:06.2]} 48.
Kc2 {[%clk 0:00:05.7]} 48... Ke3 {[%clk 0:00:06.6]} 49. Kd1 {[%clk 0:00:06.1]}
49... f2 {[%clk 0:00:07.1]} 50. Bxf2+ {[%clk 0:00:05.9]} 50... Kxf2 {[%clk
0:00:08]} 51. Kd2 {[%clk 0:00:06.3]} 51... g4 {[%clk 0:00:08.5]} 52. Kd3 {[%clk
0:00:06.6]} 52... h5 {[%clk 0:00:09.1]} 53. Ke4 {[%clk 0:00:07.1]} 53... h4
{[%clk 0:00:09.7]} 54. Kf4 {[%clk 0:00:07.4]} 54... g3 {[%clk 0:00:10.6]} 55.
Kg4 {[%clk 0:00:07.3]} 55... gxh2 {[%clk 0:00:10.8]} 56. Kh3 {[%clk 0:00:07.9]}
56... h1=Q+ {[%clk 0:00:11.7]} 57. Kg4 {[%clk 0:00:08.2]} 57... Qg2+ {[%clk
0:00:12]} 58. Kh5 {[%clk 0:00:08.8]} 58... h3 {[%clk 0:00:12.1]} 0-1

[Event "*** Titled Tuesday Blitz"]
[Site "Chess.com"]
[Date "2020.11.24"]
[Round "4"]
[White "suyu28"]
[Black "mc4chess"]
[Result "1-0"]
[WhiteElo "2614"]
[BlackElo "2462"]
[TimeControl "180+1"]
[EndTime "10:56:15 PST"]
[Termination "suyu28 won by resignation"]

1. e4 {[%clk 0:03:00.9]} 1... c5 {[%clk 0:02:59.3]} 2. Nf3 {[%clk 0:03:00]} 2...
e6 {[%clk 0:02:59.7]} 3. g3 {[%clk 0:02:53.8]} 3... Nc6 {[%clk 0:02:57.9]} 4.
Bg2 {[%clk 0:02:54.4]} 4... Nf6 {[%clk 0:02:56.8]} 5. Qe2 {[%clk 0:02:50]} 5...
d5 {[%clk 0:02:56.1]} 6. exd5 {[%clk 0:02:46.3]} 6... Nxd5 {[%clk 0:02:55.6]} 7.
O-O {[%clk 0:02:45.9]} 7... Be7 {[%clk 0:02:55.9]} 8. Rd1 {[%clk 0:02:45.9]}
8... O-O {[%clk 0:02:48.2]} 9. d4 {[%clk 0:02:45.7]} 9... cxd4 {[%clk
0:02:48.2]} 10. Nxd4 {[%clk 0:02:46.6]} 10... Nxd4 {[%clk 0:02:24.7]} 11. Rxd4
{[%clk 0:02:47.5]} 11... Bf6 {[%clk 0:02:16.8]} 12. Rd1 {[%clk 0:02:46.7]} 12...
Qc7 {[%clk 0:02:11.1]} 13. c4 {[%clk 0:02:33.4]} 13... Nb6 {[%clk 0:02:04.6]}
14. Na3 {[%clk 0:02:33.4]} 14... Bd7 {[%clk 0:02:04.2]} 15. Bf4 {[%clk
0:02:32.5]} 15... Qc8 {[%clk 0:02:01.4]} 16. Bd6 {[%clk 0:02:32.4]} 16... Rd8
{[%clk 0:01:58.6]} 17. Rac1 {[%clk 0:02:25.9]} 17... Bc6 {[%clk 0:01:58.1]} 18.
c5 {[%clk 0:02:11.7]} 18... Bxg2 {[%clk 0:01:50.5]} 19. Kxg2 {[%clk 0:02:12.6]}
19... Nd5 {[%clk 0:01:47.8]} 20. Nc4 {[%clk 0:02:07.7]} 20... Qc6 {[%clk
0:01:43.7]} 21. Kg1 {[%clk 0:02:03.7]} 21... Qa6 {[%clk 0:01:39.8]} 22. a3
{[%clk 0:01:59.9]} 22... Rac8 {[%clk 0:01:38.9]} 23. Kf1 {[%clk 0:01:51.6]}
23... b6 {[%clk 0:01:26.8]} 24. cxb6 {[%clk 0:00:42]} 24... axb6 {[%clk
0:01:27.7]} 25. Bb4 {[%clk 0:00:27.1]} 25... Nxb4 {[%clk 0:01:20.6]} 26. Rxd8+
{[%clk 0:00:26.6]} 26... Rxd8 {[%clk 0:01:21.5]} 27. axb4 {[%clk 0:00:26.5]}
27... Qb5 {[%clk 0:01:16.7]} 28. b3 {[%clk 0:00:24.8]} 28... Qxb4 {[%clk
0:01:15.8]} 29. Rd1 {[%clk 0:00:25.2]} 29... Rc8 {[%clk 0:00:57.2]} 30. Rd3
{[%clk 0:00:24.2]} 30... h6 {[%clk 0:00:52.7]} 31. Kg2 {[%clk 0:00:23.9]} 31...
b5 {[%clk 0:00:51]} 32. Nd6 {[%clk 0:00:23.8]} 32... Rd8 {[%clk 0:00:26.6]} 33.
Ne4 {[%clk 0:00:23.5]} 33... Rxd3 {[%clk 0:00:23.1]} 34. Qxd3 {[%clk 0:00:24.4]}
34... Be7 {[%clk 0:00:16.6]} 35. h4 {[%clk 0:00:23.3]} 35... f5 {[%clk
0:00:14.4]} 36. Nd2 {[%clk 0:00:23.1]} 36... Qc5 {[%clk 0:00:11.3]} 37. Nf3
{[%clk 0:00:17.9]} 37... g5 {[%clk 0:00:10.3]} 38. hxg5 {[%clk 0:00:16.4]} 38...
hxg5 {[%clk 0:00:11.2]} 39. Kf1 {[%clk 0:00:11.2]} 39... g4 {[%clk 0:00:11.4]}
40. Ne1 {[%clk 0:00:08.8]} 40... b4 {[%clk 0:00:11.6]} 41. Nc2 {[%clk
0:00:05.2]} 41... Qc3 {[%clk 0:00:11.9]} 42. Qxc3 {[%clk 0:00:03]} 42... bxc3
{[%clk 0:00:12.7]} 43. Ke2 {[%clk 0:00:03.9]} 43... Kf7 {[%clk 0:00:11.6]} 44.
Kd3 {[%clk 0:00:04.2]} 44... Bc5 {[%clk 0:00:11.9]} 45. Ne3 {[%clk 0:00:01.3]}
45... Kf6 {[%clk 0:00:11.7]} 46. Kxc3 {[%clk 0:00:01.7]} 46... e5 {[%clk
0:00:12.4]} 47. Kd3 {[%clk 0:00:02.3]} 47... Kg5 {[%clk 0:00:12.2]} 48. Ke2
{[%clk 0:00:02.7]} 48... f4 {[%clk 0:00:12.6]} 49. gxf4+ {[%clk 0:00:02.8]}
49... exf4 {[%clk 0:00:13.5]} 50. Nd1 {[%clk 0:00:03.3]} 50... f3+ {[%clk
0:00:13.4]} 51. Kf1 {[%clk 0:00:03.6]} 51... Kf4 {[%clk 0:00:14]} 52. Nb2 {[%clk
0:00:03.9]} 52... Bb6 {[%clk 0:00:12.5]} 53. Nc4 {[%clk 0:00:04.2]} 53... Ke4
{[%clk 0:00:12]} 54. Nxb6 {[%clk 0:00:04.4]} 54... Kd3 {[%clk 0:00:12.1]} 55.
Nc4 {[%clk 0:00:04.3]} 55... Kc3 {[%clk 0:00:12.3]} 56. Ne5 {[%clk 0:00:04.7]}
56... Kxb3 {[%clk 0:00:12.6]} 57. Nxg4 {[%clk 0:00:05]} 57... Kc4 {[%clk
0:00:13.5]} 58. Nh2 {[%clk 0:00:05.9]} 58... Kd3 {[%clk 0:00:14.1]} 59. Nxf3
{[%clk 0:00:06.8]} 59... Ke4 {[%clk 0:00:15]} 60. Nh2 {[%clk 0:00:07.7]} 60...
Kf4 {[%clk 0:00:15.4]} 61. Kg1 {[%clk 0:00:08.6]} 1-0

[Event "*** Titled Tuesday Blitz"]
[Site "Chess.com"]
[Date "2020.11.24"]
[Round "4"]
[White "Harsha_Bharathakoti"]
[Black "SchmakAttack"]
[Result "1-0"]
[WhiteElo "2717"]
[BlackElo "2503"]
[TimeControl "180+1"]
[EndTime "10:56:22 PST"]
[Termination "Harsha_Bharathakoti won on time"]

1. d4 {[%clk 0:03:00.9]} 1... Nf6 {[%clk 0:02:59.7]} 2. c4 {[%clk 0:03:01.2]}
2... e6 {[%clk 0:03:00.2]} 3. Nc3 {[%clk 0:03:01.6]} 3... Bb4 {[%clk 0:03:00.4]}
4. e3 {[%clk 0:03:02.1]} 4... O-O {[%clk 0:03:00.3]} 5. Bd2 {[%clk 0:03:02.6]}
5... c5 {[%clk 0:02:53.1]} 6. Nf3 {[%clk 0:03:01.2]} 6... cxd4 {[%clk
0:02:39.8]} 7. Nxd4 {[%clk 0:02:58.3]} 7... d5 {[%clk 0:02:36.2]} 8. Rc1 {[%clk
0:02:56.9]} 8... e5 {[%clk 0:02:08]} 9. Nc2 {[%clk 0:02:56.7]} 9... Be7 {[%clk
0:02:02.3]} 10. cxd5 {[%clk 0:02:56.6]} 10... Nxd5 {[%clk 0:02:02.8]} 11. Bc4
{[%clk 0:02:53]} 11... Be6 {[%clk 0:01:58.3]} 12. Qe2 {[%clk 0:02:44]} 12... Nc6
{[%clk 0:01:47.8]} 13. O-O {[%clk 0:02:43.7]} 13... Rc8 {[%clk 0:01:47]} 14.
Rfd1 {[%clk 0:02:30.6]} 14... Nxc3 {[%clk 0:01:29]} 15. Bxc3 {[%clk 0:02:30.8]}
15... Bxc4 {[%clk 0:01:28]} 16. Qxc4 {[%clk 0:02:31.7]} 16... Qb6 {[%clk
0:01:04.8]} 17. Qe4 {[%clk 0:02:22.1]} 17... Rfd8 {[%clk 0:01:03.3]} 18. Ne1
{[%clk 0:02:18]} 18... Rxd1 {[%clk 0:00:47.5]} 19. Rxd1 {[%clk 0:02:17.9]} 19...
Rd8 {[%clk 0:00:48.2]} 20. Rc1 {[%clk 0:02:09.8]} 20... Qa6 {[%clk 0:00:39.9]}
21. a3 {[%clk 0:01:55.5]} 21... Qe2 {[%clk 0:00:36.5]} 22. g4 {[%clk 0:01:10.1]}
22... Rd1 {[%clk 0:00:30.5]} 23. Rxd1 {[%clk 0:01:09.9]} 23... Qxd1 {[%clk
0:00:31.4]} 24. Kg2 {[%clk 0:01:10.6]} 24... Qd7 {[%clk 0:00:17.3]} 25. Nf3
{[%clk 0:00:58.1]} 25... f6 {[%clk 0:00:17.8]} 26. h4 {[%clk 0:00:58.3]} 26...
Qe6 {[%clk 0:00:16.6]} 27. h5 {[%clk 0:00:57.7]} 27... Kf7 {[%clk 0:00:13.2]}
28. Nh4 {[%clk 0:00:55.3]} 28... Bf8 {[%clk 0:00:07.5]} 29. Kg3 {[%clk
0:00:51.1]} 29... Kg8 {[%clk 0:00:06.6]} 30. Nf5 {[%clk 0:00:51.1]} 30... a6
{[%clk 0:00:06.6]} 31. f3 {[%clk 0:00:43.1]} 31... b5 {[%clk 0:00:06.7]} 32. Qd3
{[%clk 0:00:39.9]} 32... Kf7 {[%clk 0:00:06.6]} 33. Nh4 {[%clk 0:00:34.8]} 33...
Kg8 {[%clk 0:00:06.8]} 34. Kf2 {[%clk 0:00:32]} 34... Qd6 {[%clk 0:00:07]} 35.
Qe4 {[%clk 0:00:26]} 35... Ne7 {[%clk 0:00:07.5]} 36. Ke2 {[%clk 0:00:23.9]}
36... Nd5 {[%clk 0:00:05.5]} 37. Bd2 {[%clk 0:00:20.8]} 37... Qc6 {[%clk
0:00:04]} 38. Nf5 {[%clk 0:00:20.6]} 38... Kf7 {[%clk 0:00:03.6]} 39. Ng3 {[%clk
0:00:20.3]} 39... Qe6 {[%clk 0:00:03.5]} 40. Qxh7 {[%clk 0:00:19.4]} 40... Nb6
{[%clk 0:00:02.7]} 41. Qd3 {[%clk 0:00:17.3]} 41... Nc4 {[%clk 0:00:01.8]} 42.
Bc3 {[%clk 0:00:17.9]} 42... Bc5 {[%clk 0:00:02]} 43. Nf5 {[%clk 0:00:17]} 43...
Qc6 {[%clk 0:00:01.2]} 44. e4 {[%clk 0:00:07.4]} 44... Bb6 {[%clk 0:00:01.5]}
45. Qd5+ {[%clk 0:00:07.7]} 45... Qxd5 {[%clk 0:00:01.8]} 46. exd5 {[%clk
0:00:08.6]} 46... g6 {[%clk 0:00:02]} 47. hxg6+ {[%clk 0:00:08.7]} 47... Kxg6
{[%clk 0:00:02.9]} 48. Kd3 {[%clk 0:00:07.9]} 48... Kf7 {[%clk 0:00:03.4]} 49.
b3 {[%clk 0:00:07.1]} 49... Nxa3 {[%clk 0:00:03.1]} 50. Bb4 {[%clk 0:00:07.7]}
50... Nb1 {[%clk 0:00:03.1]} 51. Kc2 {[%clk 0:00:08.4]} 51... a5 {[%clk
0:00:02.8]} 52. Kxb1 {[%clk 0:00:08.5]} 52... axb4 {[%clk 0:00:02.8]} 53. Kc2
{[%clk 0:00:09.3]} 53... Bc5 {[%clk 0:00:02.9]} 54. Kd3 {[%clk 0:00:09.9]} 54...
Ke8 {[%clk 0:00:03.4]} 55. Ke4 {[%clk 0:00:10.5]} 55... Kd7 {[%clk 0:00:03.7]}
56. Ng3 {[%clk 0:00:11.3]} 56... Ke7 {[%clk 0:00:03.7]} 57. Nh5 {[%clk 0:00:12]}
57... Kf7 {[%clk 0:00:04.1]} 58. Kf5 {[%clk 0:00:12.5]} 58... Be7 {[%clk
0:00:04.7]} 59. Ng3 {[%clk 0:00:13]} 59... Bc5 {[%clk 0:00:04.7]} 60. Ne4 {[%clk
0:00:13.8]} 60... Be7 {[%clk 0:00:05.3]} 61. d6 {[%clk 0:00:14.6]} 61... Bd8
{[%clk 0:00:06]} 62. Nc5 {[%clk 0:00:15.1]} 62... Bb6 {[%clk 0:00:05.7]} 63. Ne6
{[%clk 0:00:14]} 63... Ke8 {[%clk 0:00:01.1]} 64. Kxf6 {[%clk 0:00:14.2]} 1-0

[Event "*** Titled Tuesday Blitz"]
[Site "Chess.com"]
[Date "2020.11.24"]
[Round "4"]
[White "Ashedu66"]
[Black "DishonorOnYourCow"]
[Result "0-1"]
[WhiteElo "2243"]
[BlackElo "2441"]
[TimeControl "180+1"]
[EndTime "10:56:23 PST"]
[Termination "DishonorOnYourCow won on time"]

1. d4 {[%clk 0:03:00.9]} 1... Nf6 {[%clk 0:02:59.1]} 2. Nf3 {[%clk 0:03:00.8]}
2... g6 {[%clk 0:02:59.3]} 3. c4 {[%clk 0:03:01]} 3... Bg7 {[%clk 0:02:58.8]} 4.
Nc3 {[%clk 0:03:00.7]} 4... d5 {[%clk 0:02:58.8]} 5. Bf4 {[%clk 0:02:59]} 5...
O-O {[%clk 0:02:55.3]} 6. Rc1 {[%clk 0:02:58.6]} 6... Be6 {[%clk 0:02:53.1]} 7.
cxd5 {[%clk 0:02:54.4]} 7... Nxd5 {[%clk 0:02:52.4]} 8. Be5 {[%clk 0:02:51]}
8... Nxc3 {[%clk 0:02:36.7]} 9. Rxc3 {[%clk 0:02:45.7]} 9... c6 {[%clk
0:02:27.4]} 10. Bxg7 {[%clk 0:02:26.2]} 10... Kxg7 {[%clk 0:02:26.7]} 11. a3
{[%clk 0:02:23.7]} 11... Qd5 {[%clk 0:01:50]} 12. Qd2 {[%clk 0:02:14.7]} 12...
Nd7 {[%clk 0:01:46.2]} 13. e3 {[%clk 0:02:11.1]} 13... Bg4 {[%clk 0:01:33.8]}
14. Be2 {[%clk 0:02:09]} 14... Nf6 {[%clk 0:01:30.7]} 15. Qd1 {[%clk 0:01:35.1]}
15... Ne4 {[%clk 0:01:23.2]} 16. Rd3 {[%clk 0:01:11.7]} 16... Rad8 {[%clk
0:01:09.4]} 17. O-O {[%clk 0:01:09.8]} 17... Rfe8 {[%clk 0:00:55.1]} 18. Re1
{[%clk 0:00:53.7]} 18... Nf6 {[%clk 0:00:31.9]} 19. Ne5 {[%clk 0:00:37.8]} 19...
Bf5 {[%clk 0:00:30.1]} 20. Rb3 {[%clk 0:00:26]} 20... b5 {[%clk 0:00:18]} 21.
Bf3 {[%clk 0:00:22.2]} 21... Be4 {[%clk 0:00:16.9]} 22. Bxe4 {[%clk 0:00:20.6]}
22... Nxe4 {[%clk 0:00:17.8]} 23. Qc2 {[%clk 0:00:19.3]} 23... Rc8 {[%clk
0:00:16.2]} 24. Nd3 {[%clk 0:00:11.9]} 24... a6 {[%clk 0:00:14.5]} 25. Rc1
{[%clk 0:00:11.8]} 25... a5 {[%clk 0:00:12.5]} 26. f3 {[%clk 0:00:09.5]} 26...
Nd6 {[%clk 0:00:12.2]} 27. Rc3 {[%clk 0:00:08.9]} 27... Nc4 {[%clk 0:00:11.3]}
28. Nc5 {[%clk 0:00:07.7]} 28... a4 {[%clk 0:00:08.7]} 29. Qf2 {[%clk
0:00:06.7]} 29... e5 {[%clk 0:00:08.3]} 30. e4 {[%clk 0:00:02.4]} 30... Qxd4
{[%clk 0:00:08.2]} 31. Na6 {[%clk 0:00:01.7]} 31... Qxf2+ {[%clk 0:00:07.6]} 32.
Kxf2 {[%clk 0:00:02]} 32... Rcd8 {[%clk 0:00:08.5]} 33. Nb4 {[%clk 0:00:01.7]}
33... Rd2+ {[%clk 0:00:09.4]} 34. Kg1 {[%clk 0:00:02]} 34... Rxb2 {[%clk
0:00:09.5]} 35. Nxc6 {[%clk 0:00:02.2]} 35... Rc8 {[%clk 0:00:09.4]} 36. Na5
{[%clk 0:00:01.3]} 36... Ra2 {[%clk 0:00:08.6]} 37. Nxc4 {[%clk 0:00:01.1]}
37... bxc4 {[%clk 0:00:09.5]} 38. Rxc4 {[%clk 0:00:01.5]} 38... Rxc4 {[%clk
0:00:10.4]} 39. Rxc4 {[%clk 0:00:01.7]} 39... Rxa3 {[%clk 0:00:11.3]} 40. Rc7
{[%clk 0:00:01.6]} 40... Ra2 {[%clk 0:00:10.8]} 41. Ra7 {[%clk 0:00:01.6]} 41...
h5 {[%clk 0:00:11.4]} 42. h4 {[%clk 0:00:01.7]} 42... a3 {[%clk 0:00:10.9]} 43.
Kh2 {[%clk 0:00:02]} 43... Kf6 {[%clk 0:00:09.9]} 44. Kg3 {[%clk 0:00:02.1]}
44... Ra1 {[%clk 0:00:08.7]} 45. Ra6+ {[%clk 0:00:02.1]} 45... Ke7 {[%clk
0:00:08.7]} 46. Ra7+ {[%clk 0:00:02.5]} 46... Ke6 {[%clk 0:00:08.9]} 47. Ra6+
{[%clk 0:00:02.1]} 47... Ke7 {[%clk 0:00:06.7]} 48. Ra7+ {[%clk 0:00:02.3]}
48... Kf6 {[%clk 0:00:07.1]} 49. Ra6+ {[%clk 0:00:02.5]} 49... Kg7 {[%clk
0:00:07.7]} 50. Ra5 {[%clk 0:00:02.7]} 50... a2 {[%clk 0:00:08]} 51. Kf2 {[%clk
0:00:02.7]} 51... Kf6 {[%clk 0:00:08.1]} 52. Kg3 {[%clk 0:00:03]} 52... Ke6
{[%clk 0:00:08.1]} 53. Ra6+ {[%clk 0:00:03.1]} 53... Kd7 {[%clk 0:00:08.1]} 54.
Ra7+ {[%clk 0:00:02.8]} 54... Kc6 {[%clk 0:00:08.5]} 55. Ra3 {[%clk 0:00:02.9]}
55... Kc5 {[%clk 0:00:08.6]} 56. Ra8 {[%clk 0:00:03]} 56... Kd4 {[%clk
0:00:08.4]} 57. Rd8+ {[%clk 0:00:02.8]} 57... Ke3 {[%clk 0:00:08.5]} 58. Ra8
{[%clk 0:00:02.7]} 58... Ke2 {[%clk 0:00:08.8]} 59. Ra4 {[%clk 0:00:01.8]} 59...
Kd3 {[%clk 0:00:08.4]} 60. Ra8 {[%clk 0:00:01.6]} 60... f5 {[%clk 0:00:07.7]}
0-1